[Event "*** SCC Grand Prix: Titled Tuesday Blitz"]
[Site "Chess.com"]
[Date "2020.06.23"]
[Round "8"]
[White "cholzan"]
[Black "MartinCerveny"]
[Result "1-0"]
[WhiteElo "2386"]
[BlackElo "2656"]
[TimeControl "180+1"]
[EndTime "11:35:24 PDT"]
[Termination "cholzan won by checkmate"]

1. d4 {[%clk 0:03:00.9]} 1... d5 {[%clk 0:02:59.8]} 2. c4 {[%clk 0:03:00]} 2...
c6 {[%clk 0:03:00]} 3. Nf3 {[%clk 0:02:57.7]} 3... Nf6 {[%clk 0:03:00.2]} 4. e3
{[%clk 0:02:58]} 4... Bf5 {[%clk 0:02:59.5]} 5. Nc3 {[%clk 0:02:57.1]} 5... e6
{[%clk 0:02:59.6]} 6. Nh4 {[%clk 0:02:57]} 6... Bg4 {[%clk 0:02:59.8]} 7. Qb3
{[%clk 0:02:56]} 7... b6 {[%clk 0:02:59.8]} 8. h3 {[%clk 0:02:55]} 8... Bh5
{[%clk 0:02:59.9]} 9. g4 {[%clk 0:02:47.6]} 9... Ne4 {[%clk 0:02:59.7]} 10. Nxe4
{[%clk 0:02:42.7]} 10... Qxh4 {[%clk 0:02:58.8]} 11. Ng3 {[%clk 0:02:39]} 11...
Bg6 {[%clk 0:02:58.6]} 12. cxd5 {[%clk 0:02:34.9]} 12... exd5 {[%clk 0:02:57.8]}
13. Bg2 {[%clk 0:02:29]} 13... Bd6 {[%clk 0:02:57.1]} 14. Ne2 {[%clk 0:02:16.3]}
14... O-O {[%clk 0:02:52.2]} 15. O-O {[%clk 0:02:12.3]} 15... Nd7 {[%clk
0:02:51.1]} 16. Nf4 {[%clk 0:02:07.4]} 16... Nf6 {[%clk 0:02:40.6]} 17. Qd1
{[%clk 0:01:41.8]} 17... Ne4 {[%clk 0:02:31.6]} 18. Nxg6 {[%clk 0:01:30.2]}
18... fxg6 {[%clk 0:02:25.7]} 19. Qc2 {[%clk 0:01:29.7]} 19... Rae8 {[%clk
0:02:09]} 20. Qxc6 {[%clk 0:01:11.9]} 20... Rxf2 {[%clk 0:01:30.5]} 21. Qxe8+
{[%clk 0:01:08.4]} 21... Bf8 {[%clk 0:01:30.2]} 22. Rxf2 {[%clk 0:00:33.1]}
22... Qxf2+ {[%clk 0:01:30.1]} 23. Kh2 {[%clk 0:00:33.1]} 23... Qg3+ {[%clk
0:01:29.2]} 24. Kg1 {[%clk 0:00:32.9]} 24... Qe1+ {[%clk 0:01:29.1]} 25. Kh2
{[%clk 0:00:32.5]} 25... Qg3+ {[%clk 0:01:17.6]} 26. Kg1 {[%clk 0:00:32.2]}
26... h6 {[%clk 0:00:44.3]} 27. Qe6+ {[%clk 0:00:22.5]} 27... Kh7 {[%clk
0:00:43.3]} 28. Qf7 {[%clk 0:00:22.6]} 28... Bd6 {[%clk 0:00:37.3]} 29. Qf3
{[%clk 0:00:21.6]} 29... Qh2+ {[%clk 0:00:35]} 30. Kf1 {[%clk 0:00:21.7]} 30...
Ng5 {[%clk 0:00:26.9]} 31. Qxd5 {[%clk 0:00:19.5]} 31... Bg3 {[%clk 0:00:26.7]}
32. Bd2 {[%clk 0:00:18.4]} 32... Nxh3 {[%clk 0:00:25.9]} 33. Ke2 {[%clk
0:00:10.1]} 33... Ng1+ {[%clk 0:00:21.5]} 34. Kd3 {[%clk 0:00:10.2]} 34... Bf2
{[%clk 0:00:20]} 35. Be4 {[%clk 0:00:09.8]} 35... Bh4 {[%clk 0:00:14.9]} 36.
Bxg6+ {[%clk 0:00:09.5]} 36... Kxg6 {[%clk 0:00:13.8]} 37. Qf5# {[%clk
0:00:09.4]} 1-0

[Event "*** SCC Grand Prix: Titled Tuesday Blitz"]
[Site "Chess.com"]
[Date "2020.06.23"]
[Round "8"]
[White "Harry_Rakkel"]
[Black "Poghosyan_Suren"]
[Result "1-0"]
[WhiteElo "2567"]
[BlackElo "2443"]
[TimeControl "180+1"]
[EndTime "11:35:24 PDT"]
[Termination "Harry_Rakkel won by resignation"]

1. e4 {[%clk 0:02:37]} 1... e6 {[%clk 0:02:39]} 2. d4 {[%clk 0:02:34.3]} 2... d5
{[%clk 0:02:38.9]} 3. Nc3 {[%clk 0:02:33.4]} 3... Bb4 {[%clk 0:02:38.2]} 4. e5
{[%clk 0:02:32.9]} 4... c5 {[%clk 0:02:36.6]} 5. a3 {[%clk 0:02:32.2]} 5...
Bxc3+ {[%clk 0:02:35.7]} 6. bxc3 {[%clk 0:02:31.7]} 6... Qc7 {[%clk 0:02:36.6]}
7. Nf3 {[%clk 0:02:30]} 7... b6 {[%clk 0:02:32.3]} 8. Bb5+ {[%clk 0:02:28.4]}
8... Bd7 {[%clk 0:02:31.6]} 9. Bd3 {[%clk 0:02:27.4]} 9... c4 {[%clk 0:02:31.5]}
10. Be2 {[%clk 0:02:26.5]} 10... Ba4 {[%clk 0:02:31.5]} 11. Bf4 {[%clk
0:02:21.1]} 11... Nc6 {[%clk 0:02:30.1]} 12. Qd2 {[%clk 0:02:19.6]} 12... Nge7
{[%clk 0:02:28.1]} 13. h4 {[%clk 0:02:18.7]} 13... O-O-O {[%clk 0:02:26.4]} 14.
h5 {[%clk 0:02:17.8]} 14... h6 {[%clk 0:02:25.3]} 15. Nh4 {[%clk 0:02:01.8]}
15... Kb7 {[%clk 0:02:07.5]} 16. Bg4 {[%clk 0:01:59.8]} 16... Qd7 {[%clk
0:01:59.5]} 17. Bh3 {[%clk 0:01:32.3]} 17... Qe8 {[%clk 0:01:28.2]} 18. g4
{[%clk 0:01:03.7]} 18... Qg8 {[%clk 0:01:25.7]} 19. Ng2 {[%clk 0:01:00.5]} 19...
g5 {[%clk 0:01:22.8]} 20. Bg3 {[%clk 0:00:53.7]} 20... Qh7 {[%clk 0:01:18.5]}
21. Ne3 {[%clk 0:00:50.2]} 21... Rhf8 {[%clk 0:01:18.1]} 22. O-O {[%clk
0:00:48.5]} 22... f5 {[%clk 0:01:17.3]} 23. exf6 {[%clk 0:00:47.7]} 23... Rxf6
{[%clk 0:01:16.8]} 24. Bg2 {[%clk 0:00:47.2]} 24... Rdf8 {[%clk 0:01:15]} 25.
Rfe1 {[%clk 0:00:45.7]} 25... Rf4 {[%clk 0:00:59.5]} 26. Re2 {[%clk 0:00:42.7]}
26... Kc7 {[%clk 0:00:56.7]} 27. Rae1 {[%clk 0:00:42]} 27... Kd7 {[%clk
0:00:49.7]} 28. Bxf4 {[%clk 0:00:24.8]} 28... gxf4 {[%clk 0:00:47.6]} 29. Nxc4
{[%clk 0:00:24.4]} 29... dxc4 {[%clk 0:00:34]} 30. d5 {[%clk 0:00:22.7]} 30...
exd5 {[%clk 0:00:24.7]} 31. Bxd5 {[%clk 0:00:22.2]} 31... Kc7 {[%clk 0:00:22.8]}
32. Be4 {[%clk 0:00:20.5]} 32... Qg7 {[%clk 0:00:20.5]} 33. Bf3 {[%clk
0:00:17.9]} 33... Rd8 {[%clk 0:00:18.4]} 34. Qxf4+ {[%clk 0:00:16.7]} 34... Kc8
{[%clk 0:00:18.5]} 35. Qxc4 {[%clk 0:00:16.1]} 35... b5 {[%clk 0:00:15.3]} 36.
Qc5 {[%clk 0:00:15.4]} 36... Qf6 {[%clk 0:00:13.7]} 37. Rxe7 {[%clk 0:00:12.8]}
37... Qxe7 {[%clk 0:00:11.1]} 38. Rxe7 {[%clk 0:00:11.7]} 1-0

[Event "*** SCC Grand Prix: Titled Tuesday Blitz"]
[Site "Chess.com"]
[Date "2020.06.23"]
[Round "8"]
[White "Fortitudine"]
[Black "eightbyeightchess"]
[Result "0-1"]
[WhiteElo "2276"]
[BlackElo "2412"]
[TimeControl "180+1"]
[EndTime "11:35:24 PDT"]
[Termination "eightbyeightchess won on time"]

1. d4 {[%clk 0:03:00.9]} 1... d5 {[%clk 0:02:59]} 2. Nc3 {[%clk 0:03:00.6]} 2...
Nf6 {[%clk 0:02:58.4]} 3. Bg5 {[%clk 0:03:00.5]} 3... Bf5 {[%clk 0:02:58.2]} 4.
e3 {[%clk 0:02:59.9]} 4... h6 {[%clk 0:02:56.2]} 5. Bh4 {[%clk 0:02:59.3]} 5...
Nbd7 {[%clk 0:02:53.5]} 6. Bd3 {[%clk 0:02:58.3]} 6... Bg4 {[%clk 0:02:48.6]} 7.
Nge2 {[%clk 0:02:31.5]} 7... g5 {[%clk 0:02:38.9]} 8. Bg3 {[%clk 0:02:16.3]}
8... Bg7 {[%clk 0:02:33]} 9. f3 {[%clk 0:02:01.8]} 9... Bh5 {[%clk 0:02:32]} 10.
h4 {[%clk 0:02:02.1]} 10... c6 {[%clk 0:02:27.5]} 11. Qd2 {[%clk 0:01:57.4]}
11... b5 {[%clk 0:02:18.7]} 12. O-O-O {[%clk 0:01:43.8]} 12... g4 {[%clk
0:02:11]} 13. Rdf1 {[%clk 0:01:28.2]} 13... gxf3 {[%clk 0:02:07.7]} 14. gxf3
{[%clk 0:01:29.1]} 14... Qa5 {[%clk 0:02:06.9]} 15. Kb1 {[%clk 0:01:26.1]} 15...
O-O-O {[%clk 0:02:00.8]} 16. Nf4 {[%clk 0:01:23.2]} 16... Rhg8 {[%clk
0:01:59.5]} 17. Rhg1 {[%clk 0:01:08]} 17... e6 {[%clk 0:01:37.8]} 18. Rg2 {[%clk
0:00:45.3]} 18... Bf8 {[%clk 0:01:34.1]} 19. Nxh5 {[%clk 0:00:39.3]} 19... Nxh5
{[%clk 0:01:35]} 20. Be1 {[%clk 0:00:35.7]} 20... Bb4 {[%clk 0:01:29.2]} 21.
Rfg1 {[%clk 0:00:31.3]} 21... Nhf6 {[%clk 0:01:23.1]} 22. Rxg8 {[%clk
0:00:30.2]} 22... Rxg8 {[%clk 0:01:24]} 23. Rxg8+ {[%clk 0:00:29.9]} 23... Nxg8
{[%clk 0:01:23.8]} 24. Qg2 {[%clk 0:00:30.4]} 24... Qd8 {[%clk 0:01:15.3]} 25.
Qg7 {[%clk 0:00:16.4]} 25... Qf8 {[%clk 0:01:14.6]} 26. Qxf8+ {[%clk 0:00:15.6]}
26... Bxf8 {[%clk 0:01:15.5]} 27. Ne2 {[%clk 0:00:15]} 27... Be7 {[%clk
0:01:14.2]} 28. c3 {[%clk 0:00:15.1]} 28... Kb7 {[%clk 0:01:06.3]} 29. Kc2
{[%clk 0:00:14.5]} 29... e5 {[%clk 0:01:06]} 30. e4 {[%clk 0:00:13.6]} 30...
Ngf6 {[%clk 0:01:04]} 31. exd5 {[%clk 0:00:10.6]} 31... Nxd5 {[%clk 0:01:03.2]}
32. Bf2 {[%clk 0:00:10.1]} 32... exd4 {[%clk 0:00:56.9]} 33. Nxd4 {[%clk
0:00:10]} 33... Ne5 {[%clk 0:00:53.3]} 34. Be4 {[%clk 0:00:09.5]} 34... Nf6
{[%clk 0:00:50.1]} 35. Nf5 {[%clk 0:00:03.5]} 35... Nxe4 {[%clk 0:00:33.4]} 36.
fxe4 {[%clk 0:00:04.4]} 36... Bf8 {[%clk 0:00:34]} 37. Bg3 {[%clk 0:00:04.6]}
37... Ng4 {[%clk 0:00:27.9]} 38. Bf4 {[%clk 0:00:03.4]} 38... h5 {[%clk
0:00:26.8]} 39. Kd3 {[%clk 0:00:02.8]} 39... c5 {[%clk 0:00:24.8]} 40. Ke2
{[%clk 0:00:02.4]} 40... Kc6 {[%clk 0:00:24.1]} 41. Kf3 {[%clk 0:00:02.6]} 41...
Nf6 {[%clk 0:00:24.5]} 0-1

[Event "*** SCC Grand Prix: Titled Tuesday Blitz"]
[Site "Chess.com"]
[Date "2020.06.23"]
[Round "8"]
[White "kleopl"]
[Black "HanSchut"]
[Result "1-0"]
[WhiteElo "2389"]
[BlackElo "2208"]
[TimeControl "180+1"]
[EndTime "11:35:28 PDT"]
[Termination "kleopl won by resignation"]

1. c4 {[%clk 0:02:59.1]} 1... Nf6 {[%clk 0:02:59.6]} 2. Nc3 {[%clk 0:02:58.9]}
2... d5 {[%clk 0:03:00]} 3. d4 {[%clk 0:02:54.5]} 3... g6 {[%clk 0:02:59.2]} 4.
Nf3 {[%clk 0:02:53]} 4... Bg7 {[%clk 0:02:59.2]} 5. g3 {[%clk 0:02:51.7]} 5...
O-O {[%clk 0:02:58.1]} 6. Bg2 {[%clk 0:02:51.9]} 6... c6 {[%clk 0:02:55.6]} 7.
cxd5 {[%clk 0:02:51.3]} 7... cxd5 {[%clk 0:02:55.4]} 8. Ne5 {[%clk 0:02:51.9]}
8... Nc6 {[%clk 0:02:50.5]} 9. Nxc6 {[%clk 0:02:51.7]} 9... bxc6 {[%clk
0:02:50.6]} 10. O-O {[%clk 0:02:52]} 10... Nd7 {[%clk 0:02:37.9]} 11. Na4 {[%clk
0:02:49.9]} 11... e5 {[%clk 0:02:34.1]} 12. dxe5 {[%clk 0:02:49.4]} 12... Nxe5
{[%clk 0:02:30.9]} 13. Be3 {[%clk 0:02:44.5]} 13... Qa5 {[%clk 0:02:14.4]} 14.
Bd4 {[%clk 0:02:36.1]} 14... Re8 {[%clk 0:01:53.4]} 15. Rc1 {[%clk 0:02:31.5]}
15... Ba6 {[%clk 0:01:20.6]} 16. Nc5 {[%clk 0:02:17.2]} 16... Rac8 {[%clk
0:00:49.5]} 17. a3 {[%clk 0:02:13.8]} 17... Qb5 {[%clk 0:00:48.7]} 18. Nxa6
{[%clk 0:02:04.9]} 18... Qxa6 {[%clk 0:00:48.4]} 19. Re1 {[%clk 0:01:52.3]}
19... Nc4 {[%clk 0:00:39.4]} 20. Bxg7 {[%clk 0:01:48.5]} 20... Kxg7 {[%clk
0:00:40.3]} 21. Qd4+ {[%clk 0:01:46.6]} 21... Kg8 {[%clk 0:00:39.6]} 22. e4
{[%clk 0:01:39.8]} 22... Qb6 {[%clk 0:00:33.1]} 23. Qxb6 {[%clk 0:01:33.7]}
23... axb6 {[%clk 0:00:32.8]} 24. Rc2 {[%clk 0:01:26.9]} 24... Red8 {[%clk
0:00:22.2]} 25. exd5 {[%clk 0:01:20.4]} 25... cxd5 {[%clk 0:00:23.1]} 26. Rec1
{[%clk 0:01:10]} 26... Rc5 {[%clk 0:00:16.2]} 27. Bxd5 {[%clk 0:01:00.4]} 27...
Rdxd5 {[%clk 0:00:12.7]} 28. Rxc4 {[%clk 0:01:00]} 28... Rxc4 {[%clk 0:00:12.5]}
29. Rxc4 {[%clk 0:01:00.9]} 29... Rd1+ {[%clk 0:00:12.1]} 30. Kg2 {[%clk
0:00:59.9]} 30... Rd2 {[%clk 0:00:13]} 31. Rb4 {[%clk 0:01:00]} 31... Rd6 {[%clk
0:00:13.6]} 32. h4 {[%clk 0:00:59.4]} 32... Kf8 {[%clk 0:00:14]} 33. Kf3 {[%clk
0:00:58.7]} 33... Ke7 {[%clk 0:00:14.4]} 34. Ke3 {[%clk 0:00:58.1]} 34... f5
{[%clk 0:00:14.4]} 35. a4 {[%clk 0:00:56.4]} 35... Kf6 {[%clk 0:00:13.3]} 36. b3
{[%clk 0:00:53.9]} 36... h6 {[%clk 0:00:13.4]} 37. Rd4 {[%clk 0:00:52.7]} 37...
Rc6 {[%clk 0:00:12.6]} 38. Kd3 {[%clk 0:00:52.7]} 38... g5 {[%clk 0:00:12.1]}
39. hxg5+ {[%clk 0:00:51.3]} 39... hxg5 {[%clk 0:00:13]} 40. Rc4 {[%clk
0:00:51.6]} 40... Rd6+ {[%clk 0:00:12.9]} 41. Kc3 {[%clk 0:00:52.1]} 41... Re6
{[%clk 0:00:12.2]} 42. Rd4 {[%clk 0:00:51.1]} 42... g4 {[%clk 0:00:11.9]} 43.
Kb4 {[%clk 0:00:49.6]} 43... Kg5 {[%clk 0:00:12.3]} 44. Kb5 {[%clk 0:00:48]}
44... Re2 {[%clk 0:00:11.7]} 45. Rf4 {[%clk 0:00:46]} 45... Rb2 {[%clk
0:00:10.2]} 46. b4 {[%clk 0:00:45.8]} 46... Re2 {[%clk 0:00:09.3]} 47. Kxb6
{[%clk 0:00:45.3]} 47... Re4 {[%clk 0:00:09.3]} 48. a5 {[%clk 0:00:41.5]} 48...
Rxf4 {[%clk 0:00:09.2]} 49. gxf4+ {[%clk 0:00:42.4]} 49... Kxf4 {[%clk
0:00:09.9]} 50. a6 {[%clk 0:00:42.9]} 50... Kf3 {[%clk 0:00:10.7]} 51. a7 {[%clk
0:00:42.9]} 51... Kxf2 {[%clk 0:00:11.6]} 52. a8=Q {[%clk 0:00:42.9]} 52... g3
{[%clk 0:00:11.6]} 53. Qf8 {[%clk 0:00:42.1]} 53... g2 {[%clk 0:00:11]} 54.
Qxf5+ {[%clk 0:00:42.1]} 54... Kg1 {[%clk 0:00:11.9]} 55. Qg4 {[%clk 0:00:41.3]}
55... Kh1 {[%clk 0:00:12.8]} 56. Qxg2+ {[%clk 0:00:39.6]} 56... Kxg2 {[%clk
0:00:12.3]} 57. Kc5 {[%clk 0:00:39.9]} 1-0

[Event "*** SCC Grand Prix: Titled Tuesday Blitz"]
[Site "Chess.com"]
[Date "2020.06.23"]
[Round "8"]
[White "Karateloru"]
[Black "SantoBlue"]
[Result "0-1"]
[WhiteElo "2627"]
[BlackElo "2797"]
[TimeControl "180+1"]
[EndTime "11:35:29 PDT"]
[Termination "SantoBlue won by resignation"]

1. Nf3 {[%clk 0:03:00.9]} 1... Nf6 {[%clk 0:02:16.1]} 2. g3 {[%clk 0:02:59.1]}
2... g6 {[%clk 0:02:14.4]} 3. Bg2 {[%clk 0:02:59.6]} 3... c5 {[%clk 0:02:14.3]}
4. O-O {[%clk 0:03:00.2]} 4... d5 {[%clk 0:02:14.7]} 5. d3 {[%clk 0:02:57.5]}
5... Bg7 {[%clk 0:02:15.2]} 6. Nbd2 {[%clk 0:02:57.7]} 6... Nc6 {[%clk
0:02:15.1]} 7. c3 {[%clk 0:02:57.9]} 7... O-O {[%clk 0:02:15.5]} 8. e4 {[%clk
0:02:58.4]} 8... e5 {[%clk 0:02:15.7]} 9. Re1 {[%clk 0:02:55.8]} 9... Re8 {[%clk
0:02:16.1]} 10. exd5 {[%clk 0:02:52.6]} 10... Nxd5 {[%clk 0:02:15.5]} 11. a4
{[%clk 0:02:52.9]} 11... b6 {[%clk 0:02:15.4]} 12. Nc4 {[%clk 0:02:52.5]} 12...
Bb7 {[%clk 0:02:14.9]} 13. Bg5 {[%clk 0:02:49.7]} 13... f6 {[%clk 0:02:14.4]}
14. Bd2 {[%clk 0:02:48.9]} 14... Qd7 {[%clk 0:02:14.5]} 15. Qc2 {[%clk 0:02:49]}
15... Rad8 {[%clk 0:02:14.6]} 16. Rad1 {[%clk 0:02:49.3]} 16... Nc7 {[%clk
0:01:58.5]} 17. Bc1 {[%clk 0:02:45.2]} 17... Ne6 {[%clk 0:01:58.4]} 18. h4
{[%clk 0:02:42.7]} 18... h5 {[%clk 0:01:58.1]} 19. Bh3 {[%clk 0:02:39.3]} 19...
Nb4 {[%clk 0:01:47.8]} 20. Qe2 {[%clk 0:01:34.3]} 20... Nxd3 {[%clk 0:01:44.1]}
21. Bf1 {[%clk 0:01:14.8]} 21... Bxf3 {[%clk 0:01:41.3]} 22. Qxf3 {[%clk
0:01:05.2]} 22... Nxe1 {[%clk 0:01:41.5]} 23. Rxe1 {[%clk 0:01:06.1]} 23... Qxa4
{[%clk 0:01:39]} 24. Na3 {[%clk 0:00:55.7]} 24... Qg4 {[%clk 0:01:37.9]} 25. Qc6
{[%clk 0:00:44.7]} 25... Nf4 {[%clk 0:01:33.3]} 26. Kh2 {[%clk 0:00:41]} 26...
Nd3 {[%clk 0:01:17.8]} 27. Bxd3 {[%clk 0:00:40.7]} 27... Kh7 {[%clk 0:01:10.1]}
28. Be4 {[%clk 0:00:32.8]} 28... Re6 {[%clk 0:01:07.4]} 29. Qb7 {[%clk
0:00:28.4]} 29... Red6 {[%clk 0:01:07.6]} 30. Bf3 {[%clk 0:00:28.1]} 30... Qf5
{[%clk 0:01:07.8]} 31. Kg2 {[%clk 0:00:27.2]} 31... Qe6 {[%clk 0:01:05.9]} 32.
Nb5 {[%clk 0:00:25.5]} 32... R6d7 {[%clk 0:01:05.8]} 33. Qe4 {[%clk 0:00:25]}
33... f5 {[%clk 0:01:05.7]} 34. Qa4 {[%clk 0:00:24.3]} 34... e4 {[%clk
0:01:05.9]} 35. Be2 {[%clk 0:00:24.4]} 35... Qc6 {[%clk 0:01:06]} 36. Be3 {[%clk
0:00:24.1]} 36... a6 {[%clk 0:01:05.4]} 37. Qb3 {[%clk 0:00:14.8]} 37... axb5
{[%clk 0:01:03.3]} 38. Bxb5 {[%clk 0:00:15.3]} 38... Qd5 {[%clk 0:01:04.2]} 39.
c4 {[%clk 0:00:14.3]} 39... Qd3 {[%clk 0:01:04.5]} 40. Qa4 {[%clk 0:00:07.8]}
40... Rf7 {[%clk 0:01:03.7]} 41. Qa6 {[%clk 0:00:06.4]} 41... f4 {[%clk
0:01:03.8]} 42. gxf4 {[%clk 0:00:06.3]} 42... Rxf4 {[%clk 0:01:04.1]} 43. Qxb6
{[%clk 0:00:05.4]} 43... Rg4+ {[%clk 0:01:03.7]} 44. Kh1 {[%clk 0:00:05.4]}
44... Rxh4+ {[%clk 0:01:04]} 45. Kg2 {[%clk 0:00:05.3]} 45... Rg4+ {[%clk
0:01:04.9]} 46. Kh1 {[%clk 0:00:05.7]} 46... Rf8 {[%clk 0:01:00.9]} 47. Qe6
{[%clk 0:00:05]} 47... Rf3 {[%clk 0:00:58.7]} 48. Kh2 {[%clk 0:00:03.8]} 48...
Rxf2+ {[%clk 0:00:57.2]} 49. Bxf2 {[%clk 0:00:03.6]} 49... Qf3 {[%clk
0:00:58.1]} 50. Bg3 {[%clk 0:00:02.8]} 50... Qxg3+ {[%clk 0:00:58.3]} 0-1

[Event "*** SCC Grand Prix: Titled Tuesday Blitz"]
[Site "Chess.com"]
[Date "2020.06.23"]
[Round "8"]
[White "Gabrielian_Artur"]
[Black "SamuelGhimpu2003"]
[Result "1-0"]
[WhiteElo "2768"]
[BlackElo "2596"]
[TimeControl "180+1"]
[EndTime "11:35:29 PDT"]
[Termination "Gabrielian_Artur won on time"]

1. e4 {[%clk 0:03:00.9]} 1... e6 {[%clk 0:02:59.3]} 2. d4 {[%clk 0:02:59.2]}
2... d5 {[%clk 0:02:59.2]} 3. e5 {[%clk 0:02:58.7]} 3... c5 {[%clk 0:02:59.1]}
4. c3 {[%clk 0:02:58.8]} 4... Qb6 {[%clk 0:02:59.5]} 5. Nf3 {[%clk 0:02:58.6]}
5... Bd7 {[%clk 0:02:59.7]} 6. Be2 {[%clk 0:02:57.8]} 6... Nc6 {[%clk
0:02:47.5]} 7. O-O {[%clk 0:02:56.4]} 7... cxd4 {[%clk 0:02:39.6]} 8. cxd4
{[%clk 0:02:56.3]} 8... Nge7 {[%clk 0:02:39.5]} 9. Nc3 {[%clk 0:02:54.5]} 9...
Nf5 {[%clk 0:02:39.5]} 10. Na4 {[%clk 0:02:54.4]} 10... Qd8 {[%clk 0:02:38.1]}
11. Bg5 {[%clk 0:02:48.8]} 11... Be7 {[%clk 0:02:31.9]} 12. Bxe7 {[%clk
0:02:48.4]} 12... Qxe7 {[%clk 0:02:32.8]} 13. Rc1 {[%clk 0:02:44.6]} 13... O-O
{[%clk 0:02:31.3]} 14. Nc5 {[%clk 0:02:43]} 14... Rab8 {[%clk 0:02:19]} 15. Bd3
{[%clk 0:02:37.6]} 15... Ncxd4 {[%clk 0:02:08.7]} 16. Nxd4 {[%clk 0:02:36]}
16... Nxd4 {[%clk 0:02:09.6]} 17. Bxh7+ {[%clk 0:02:33.1]} 17... Kxh7 {[%clk
0:02:10.5]} 18. Qxd4 {[%clk 0:02:33.3]} 18... Rfc8 {[%clk 0:02:11]} 19. Rc3
{[%clk 0:02:20.1]} 19... Kg8 {[%clk 0:02:05.5]} 20. Rfc1 {[%clk 0:02:12.3]}
20... b6 {[%clk 0:02:02.3]} 21. Nd3 {[%clk 0:01:40.7]} 21... Rxc3 {[%clk
0:01:59.3]} 22. Rxc3 {[%clk 0:01:41.6]} 22... Rc8 {[%clk 0:01:52.3]} 23. Rxc8+
{[%clk 0:01:40.1]} 23... Bxc8 {[%clk 0:01:53.2]} 24. Nf4 {[%clk 0:01:28.9]}
24... Qc7 {[%clk 0:01:48.9]} 25. h4 {[%clk 0:01:27.2]} 25... Qc1+ {[%clk
0:01:43.7]} 26. Kh2 {[%clk 0:01:27]} 26... Ba6 {[%clk 0:01:42.2]} 27. g3 {[%clk
0:01:11]} 27... Bb5 {[%clk 0:01:18.1]} 28. a4 {[%clk 0:01:05]} 28... Be8 {[%clk
0:01:14.5]} 29. Nh5 {[%clk 0:00:52.1]} 29... Qe1 {[%clk 0:01:06.7]} 30. Qf4
{[%clk 0:00:49.8]} 30... f6 {[%clk 0:01:02.3]} 31. Nxf6+ {[%clk 0:00:19.9]}
31... gxf6 {[%clk 0:01:01.1]} 32. Qxf6 {[%clk 0:00:17.1]} 32... Bf7 {[%clk
0:00:58.3]} 33. Qg5+ {[%clk 0:00:16]} 33... Kh7 {[%clk 0:00:56.1]} 34. Qf6
{[%clk 0:00:15.5]} 34... Bg6 {[%clk 0:00:36.5]} 35. Qe7+ {[%clk 0:00:13.7]}
35... Kh6 {[%clk 0:00:28.8]} 36. Qf8+ {[%clk 0:00:11.6]} 36... Kh5 {[%clk
0:00:19.9]} 37. Qf4 {[%clk 0:00:11.3]} 1-0

[Event "*** SCC Grand Prix: Titled Tuesday Blitz"]
[Site "Chess.com"]
[Date "2020.06.23"]
[Round "8"]
[White "Violord"]
[Black "KNCP_719"]
[Result "1-0"]
[WhiteElo "2623"]
[BlackElo "2467"]
[TimeControl "180+1"]
[EndTime "11:35:29 PDT"]
[Termination "Violord won on time"]

1. e4 {[%clk 0:02:55.5]} 1... e5 {[%clk 0:03:00]} 2. Nf3 {[%clk 0:02:55.2]} 2...
Nf6 {[%clk 0:03:00.3]} 3. d4 {[%clk 0:02:52.6]} 3... Nxe4 {[%clk 0:02:59.1]} 4.
dxe5 {[%clk 0:02:52.7]} 4... d5 {[%clk 0:02:57.9]} 5. Bd3 {[%clk 0:02:52.4]}
5... Nc5 {[%clk 0:02:57.5]} 6. Be2 {[%clk 0:02:52.1]} 6... Be7 {[%clk
0:02:55.3]} 7. O-O {[%clk 0:02:51.3]} 7... O-O {[%clk 0:02:50.1]} 8. Be3 {[%clk
0:02:51.4]} 8... c6 {[%clk 0:02:44.4]} 9. Nbd2 {[%clk 0:02:48.7]} 9... Bg4
{[%clk 0:02:39.1]} 10. h3 {[%clk 0:02:41.5]} 10... Bh5 {[%clk 0:02:35.1]} 11. c4
{[%clk 0:02:41.3]} 11... Ne6 {[%clk 0:02:28.6]} 12. cxd5 {[%clk 0:02:36.7]}
12... cxd5 {[%clk 0:02:29.5]} 13. Nb3 {[%clk 0:02:28.2]} 13... Nc6 {[%clk
0:02:29.3]} 14. Nh2 {[%clk 0:02:15.1]} 14... Bxe2 {[%clk 0:02:21.7]} 15. Qxe2
{[%clk 0:02:15]} 15... Nxe5 {[%clk 0:02:22.4]} 16. Rad1 {[%clk 0:02:14]} 16...
Nc6 {[%clk 0:01:52.5]} 17. Nf3 {[%clk 0:02:09.8]} 17... Bf6 {[%clk 0:01:51.6]}
18. Qb5 {[%clk 0:02:08.9]} 18... Qe7 {[%clk 0:01:20.8]} 19. Qxd5 {[%clk
0:01:52.8]} 19... Bxb2 {[%clk 0:01:18.3]} 20. Nc5 {[%clk 0:01:47.3]} 20... Rfd8
{[%clk 0:01:08.4]} 21. Qb3 {[%clk 0:01:45.3]} 21... Nxc5 {[%clk 0:00:57.4]} 22.
Qxb2 {[%clk 0:01:45.2]} 22... Ne6 {[%clk 0:00:56.1]} 23. Ne5 {[%clk 0:01:31.8]}
23... Nxe5 {[%clk 0:00:48.8]} 24. Qxe5 {[%clk 0:01:31]} 24... a6 {[%clk
0:00:49.2]} 25. Bb6 {[%clk 0:01:26.6]} 25... Rxd1 {[%clk 0:00:41.4]} 26. Rxd1
{[%clk 0:01:25.4]} 26... h6 {[%clk 0:00:39]} 27. a4 {[%clk 0:01:22]} 27... Rc8
{[%clk 0:00:22.3]} 28. a5 {[%clk 0:01:21.1]} 28... Qe8 {[%clk 0:00:19.8]} 29.
Qd6 {[%clk 0:01:18.5]} 29... Ng5 {[%clk 0:00:14.3]} 30. Qd7 {[%clk 0:01:15.6]}
30... Rb8 {[%clk 0:00:03.9]} 31. Qxe8+ {[%clk 0:01:14]} 31... Rxe8 {[%clk
0:00:04.8]} 32. Rd7 {[%clk 0:01:14.1]} 32... Rb8 {[%clk 0:00:03.4]} 33. f4
{[%clk 0:01:10.2]} 33... Ne6 {[%clk 0:00:02.9]} 34. f5 {[%clk 0:01:10.3]} 34...
Ng5 {[%clk 0:00:02.1]} 35. Ba7 {[%clk 0:01:10.1]} 35... Ra8 {[%clk 0:00:02.2]}
36. Rxb7 {[%clk 0:01:10.5]} 36... Ne4 {[%clk 0:00:02.4]} 37. Bb6 {[%clk
0:01:07.7]} 37... Nd6 {[%clk 0:00:02.5]} 38. Rd7 {[%clk 0:01:04.9]} 38... Nxf5
{[%clk 0:00:03]} 39. g4 {[%clk 0:01:03.2]} 39... Nh4 {[%clk 0:00:03.2]} 40. Kf2
{[%clk 0:01:02.5]} 40... Ng6 {[%clk 0:00:03.4]} 41. Bd4 {[%clk 0:01:00]} 41...
Nf4 {[%clk 0:00:02.9]} 42. h4 {[%clk 0:00:58]} 42... Ne6 {[%clk 0:00:02.7]} 43.
Bb6 {[%clk 0:00:57.4]} 43... g5 {[%clk 0:00:03]} 44. h5 {[%clk 0:00:52.7]} 44...
Nf4 {[%clk 0:00:02.9]} 45. Kf3 {[%clk 0:00:51.4]} 45... Kg7 {[%clk 0:00:02.3]}
46. Bd4+ {[%clk 0:00:50.6]} 46... Kf8 {[%clk 0:00:02]} 47. Rd6 {[%clk
0:00:50.8]} 47... Ne6 {[%clk 0:00:01.8]} 48. Bf6 {[%clk 0:00:50.1]} 1-0